fUSD/lending_fUSD_20251201
["ID","MTS","AMOUNT","RATE_DAILY","PERIOD"]
[395305470,1764603039983,-1642.918,0.00015417,2]
[395305471,1764603039995,-171.611,0.00015417,2]
[395305472,1764603040005,-500.0,0.00015417,2]
[395305473,1764603040014,-500.0,0.00015417,2]
[395305474,1764603040024,-500.0,0.00015417,2]
[395305475,1764603040034,-500.0,0.00015417,2]
[395305476,1764603040043,-500.0,0.00015417,2]
[395305477,1764603040053,-500.0,0.00015417,2]
[395305478,1764603040063,-500.0,0.00015417,2]
[395305479,1764603040072,-600.0,0.00015418,2]
[395305480,1764603040082,-1000.0,0.00015473,2]
[395305481,1764603040092,-200.0,0.00015502,2]
[395305482,1764603040102,-500.0,0.00015572,2]
[395305483,1764603040111,-500.0,0.00015572,2]
[395305484,1764603040121,-500.0,0.00015572,2]
[395305485,1764603040131,-500.0,0.00015573,2]
[395305486,1764603040140,-504.44408651,0.00015573,2]
[395305487,1764603040150,-360.33354768,0.00015573,2]
[395305488,1764603040159,-500.0,0.00015573,2]
[395305489,1764603040170,-500.0,0.00015573,2]
[395305490,1764603040183,-500.0,0.00015573,2]
[395305491,1764603040192,-500.0,0.00015573,2]
[395305492,1764603040202,-2357.60568398,0.00015648,2]
[395305493,1764603040211,-500.0,0.00015673,2]
[395305494,1764603040222,-338.74802037,0.00015673,2]
[395305495,1764603040232,-501.72529391,0.00015673,2]
[395305496,1764603040244,-500.0,0.00015673,2]
[395305497,1764603040254,-500.0,0.00015673,2]
[395305498,1764603040264,-500.0,0.00015673,2]
[395305499,1764603040274,-160.09684565,0.00015673,2]
[395305500,1764603040283,-500.0,0.00015673,2]
[395305501,1764603040293,-500.0,0.00015673,2]
[395305502,1764603040304,-500.0,0.00015673,2]
[395305503,1764603040313,-501.27816058,0.00015673,2]
[395305504,1764603040323,-500.0,0.00015673,2]
[395305505,1764603040333,-500.0,0.00015673,2]
[395305506,1764603040343,-500.0,0.00015673,2]
[395305507,1764603040353,-500.0,0.00015673,2]
[395305508,1764603040363,-500.0,0.00015673,2]
[395305509,1764603040373,-535.1038375,0.00015673,2]
[395305510,1764603040382,-500.0,0.00015673,2]
[395305511,1764603040392,-500.0,0.00015673,2]
[395305513,1764603040402,-506.68012113,0.00015673,2]
[395305514,1764603040412,-500.0,0.00015673,2]
[395305515,1764603040421,-500.0,0.00015673,2]
[395305516,1764603040431,-500.0,0.00015673,2]
[395305517,1764603040441,-495.9241853,0.00015673,2]
[395305518,1764603040450,-500.0,0.00015673,2]
[395305519,1764603040460,-500.0,0.00015673,2]
[395305520,1764603040470,-500.0,0.00015673,2]
[395305521,1764603040481,-500.0,0.00015673,2]
[395305522,1764603040494,-500.0,0.00015673,2]
[395305523,1764603040504,-501.70301498,0.00015673,2]
[395305524,1764603040514,-500.0,0.00015673,2]
[395305525,1764603040524,-500.0,0.00015673,2]
[395305526,1764603040534,-557.4345573,0.00015673,2]
[395305527,1764603040544,-528.45686028,0.00015673,2]
[395305528,1764603040554,-500.0,0.00015673,2]
[395305529,1764603040563,-500.0,0.00015673,2]
[395305530,1764603040573,-359.26,0.00015691,2]
[395305531,1764603040583,-360.11265794,0.000159,2]
[395305532,1764603040593,-360.11265793,0.00015961,2]
[395305533,1764603040603,-359.26,0.00015965,2]
[395305534,1764603040613,-600.0,0.00015966,2]
[395305535,1764603040623,-1749.06316949,0.0001599,2]
[395305536,1764603040633,-151.0,0.00015997,2]
[395305537,1764603040643,-552.29203276,0.00016,2]
[395305538,1764603040653,-23669.11750587,0.00016,2]
[395305539,1764603040663,-32734.29800775,0.00016,2]
[395305540,1764603040673,-932378.80139747,0.00016,4]
[395305541,1764603040683,-360.11265793,0.00016021,2]
[395305542,1764603040693,-1000.0,0.00016121,2]
[395305543,1764603040703,-617.86212032,0.00016121,2]
[395305544,1764603040712,-195.49212577,0.00016121,2]
[395305545,1764603040722,-5000.00153925,0.000162,5]
[395305546,1764603040732,-339.96710079,0.00016221,2]
[395305547,1764603040744,-1000.0,0.00016221,2]
[395305548,1764603040753,-1000.0,0.00016221,2]
[395305549,1764603040763,-987.452036,0.00016221,2]
[395305550,1764603040772,-154.41744648,0.00016221,2]
[395305551,1764603040782,-1000.0,0.00016221,2]
[395305552,1764603040791,-500.0,0.00016221,2]
[395305553,1764603040802,-1003.6615541,0.00016221,2]
[395305554,1764603040811,-1000.0,0.00016221,2]
[395305555,1764603040821,-1000.0,0.00016221,2]
[395305556,1764603040830,-1000.95083099,0.00016221,2]
[395305557,1764603040840,-1000.0,0.00016221,2]
[395305558,1764603040850,-1000.0,0.00016221,2]
[395305559,1764603040860,-1000.0,0.00016221,2]
[395305560,1764603040870,-1000.0,0.00016221,2]
[395305561,1764603040879,-1000.0,0.00016221,2]
[395305562,1764603040889,-500.53815546,0.00016221,2]
[395305563,1764603040899,-359.26,0.00016239,2]
[395305564,1764603040909,-501.93,0.00016438,2]
[395305565,1764603040919,-501.93,0.00016438,2]
[395305566,1764603040929,-501.93,0.00016438,2]
[395305567,1764603040939,-500.0,0.00016438,2]
[395305568,1764603040949,-500.0,0.00016438,2]
[395305569,1764603040958,-500.0,0.00016438,2]
[395305570,1764603040968,-500.0,0.00016438,2]
[395305571,1764603040978,-500.0,0.00016438,2]
[395305572,1764603040990,-500.0,0.00016438,2]
[395305573,1764603041000,-500.0,0.00016438,2]
[395305574,1764603041010,-500.0,0.00016438,2]
[395305575,1764603041019,-500.0,0.00016438,2]
[395305576,1764603041029,-500.0,0.00016438,2]
[395305577,1764603041039,-500.0,0.00016438,2]
[395305578,1764603041049,-500.0,0.00016438,2]
[395305579,1764603041058,-500.0,0.00016438,2]
[395305580,1764603041068,-500.0,0.00016438,2]
[395305581,1764603041078,-500.0,0.00016438,2]
[395305582,1764603041087,-500.0,0.00016438,2]
[395305583,1764603041097,-500.0,0.00016438,2]
[395305584,1764603041106,-500.0,0.00016438,2]
[395305585,1764603041116,-500.0,0.00016438,2]
[395305586,1764603041126,-500.0,0.00016438,2]
[395305587,1764603041135,-500.0,0.00016438,2]
[395305588,1764603041145,-500.0,0.00016438,2]
[395305589,1764603041154,-500.0,0.00016438,2]
[395305590,1764603041167,-500.0,0.00016438,2]
[395305591,1764603041177,-500.0,0.00016438,2]
[395305592,1764603041187,-500.0,0.00016438,2]
[395305593,1764603041197,-500.0,0.00016438,2]
[395305594,1764603041208,-500.0,0.00016438,2]
[395305595,1764603041218,-500.0,0.00016438,2]
[395305596,1764603041228,-500.0,0.00016438,2]
[395305597,1764603041239,-500.0,0.00016438,2]
[395305598,1764603041248,-266.17143484,0.00016438,2]
[395305599,1764603041260,-500.0,0.00016438,2]
[395305600,1764603041269,-10821.11,0.00016438,2]
[395305601,1764603041279,-40106.67,0.00016438,2]
[395305602,1764603041289,-800.0,0.00016438,2]
[395305603,1764603041299,-359.28,0.00016513,2]
[395305604,1764603041310,-600.0,0.00016514,2]
[395305605,1764603041320,-250.0,0.00016522,2]
[395305606,1764603041330,-357.76401239,0.000166,2]
[395305607,1764603041340,-427.65493559,0.0001666,2]
[395305608,1764603041349,-1500.0,0.00016668,2]
[395305609,1764603041359,-420.0,0.00016757,2]
[395305610,1764603041369,-384.9832306,0.00016768,2]
[395305611,1764603041379,-1500.0,0.00016768,2]
[395305612,1764603041390,-913.91043208,0.00016768,2]
[395305613,1764603041399,-1007.53552233,0.00016768,2]
[395305614,1764603041410,-1472.98196458,0.00016768,2]
[395305615,1764603041419,-1434.82176489,0.00016768,2]
[395305616,1764603041429,-1500.0,0.00016768,2]
[395305617,1764603041439,-500.0,0.00016768,2]
[395305618,1764603041450,-1585.66313192,0.00016768,2]
[395305619,1764603041460,-397.0,0.00016811,2]
[395305620,1764603041470,-397.0,0.00016816,2]
[395305621,1764603041480,-500.0,0.00016835,2]
[395305622,1764603041491,-1680.0,0.00016842,2]
[395305623,1764603041501,-397.0,0.0001686,2]
[395305624,1764603041511,-500.0,0.00016872,2]
[395305625,1764603041521,-1721.7529355,0.000169,2]
[395305626,1764603041530,-4891.16942662,0.000169,2]
[395305627,1764603041540,-397.0,0.00016946,2]
[395305628,1764603041550,-151.0,0.00016946,2]
[395305629,1764603041560,-177.12269218,0.00016946,2]
[395305630,1764603041570,-553.64373806,0.00016946,2]
[395305631,1764603041581,-300.0,0.00016946,2]
[395305632,1764603041591,-248.71531821,0.00016946,2]
[395305633,1764603041601,-226.43577512,0.00016986,2]
[395305634,1764603041612,-1716.0,0.00016986,2]
[395305635,1764603041622,-15940.0,0.00016986,2]
[395305636,1764603041632,-1749.06316949,0.0001699,2]
[395305637,1764603041641,-1749.06316949,0.0001699,2]
[395305638,1764603041652,-300.0,0.00016999,2]
[395305639,1764603041662,-300.0,0.00016999,2]
[395305640,1764603041672,-501.93,0.00016999,2]
[395305641,1764603041682,-501.93,0.00016999,2]
[395305642,1764603041691,-501.93,0.00016999,2]
[395305643,1764603041702,-501.93,0.00016999,2]
[395305644,1764603041711,-501.93,0.00016999,2]
[395305645,1764603041721,-501.93,0.00016999,2]
[395305646,1764603041731,-501.93,0.00016999,2]
[395305647,1764603041743,-501.93,0.00016999,2]
[395305648,1764603041752,-501.93,0.00016999,2]
[395305649,1764603041762,-501.93,0.00016999,2]
[395305650,1764603041772,-501.93,0.00016999,2]
[395305651,1764603041782,-501.93,0.00016999,2]
[395305652,1764603041792,-501.93,0.00016999,2]
[395305653,1764603041801,-501.93,0.00016999,2]
[395305654,1764603041811,-501.93,0.00016999,2]
[395305655,1764603041821,-501.93,0.00016999,2]
[395305656,1764603041830,-501.93,0.00016999,2]
[395305657,1764603041840,-501.93,0.00016999,2]
[395305658,1764603041849,-501.93,0.00016999,2]
[395305659,1764603041859,-501.93,0.00016999,2]
[395305660,1764603041869,-502.12,0.00016999,2]
[395305661,1764603041879,-300.0,0.00016999,2]
[395305662,1764603041888,-150.0,0.00017,2]
[395305663,1764603041898,-1887.15179401,0.00017,2]
[395305664,1764603041907,-150.0,0.00017,2]
[395305665,1764603041917,-2903.27753801,0.00017,2]
[395305666,1764603041927,-150.0,0.00017,2]
[395305667,1764603041936,-7042.61051128,0.00017,2]
[395305668,1764603041946,-150.0,0.00017,2]
[395305669,1764603041956,-3014.80928738,0.00017,2]
[395305670,1764603041965,-250.0,0.00017,2]
[395305671,1764603041975,-68994.95485219,0.00017,2]
[395305672,1764603041985,-2600427.11588805,0.00017,2]
[395305673,1764603042001,-59993.70414616,0.00017,2]
[395305674,1764603042038,-432.66398332,0.00017,2]
[395305675,1764603042049,-20795.19910297,0.00017,2]
[395305676,1764603042074,-251.16,0.00017,2]
[395305687,1764603044540,-890.66248695,0.00017,2]
[395305691,1764603045599,-542.94525159,0.00017,2]
[395305696,1764603045795,-462.05942334,0.00017,2]
[395305697,1764603045807,-13935.86068859,0.00017,2]
[395305698,1764603045819,-1052.01536856,0.00017,2]
[395305699,1764603045904,-2617.35256378,0.00017,2]
[395305700,1764603045917,-17080.5,0.00017,2]
[395305707,1764603226518,-656.83733997,0.0001201,2]
[395305710,1764603681107,500.0,0.00022,30]
[395305727,1764604143657,150.0,0.00022,30]
[395305750,1764604231749,-199.87,0.00012407,2]
[395305752,1764604231760,-250.0,0.00012778,2]
[395305754,1764604231771,-288.81991854,0.0001315,2]
[395305756,1764604231782,-193.0,0.00013647,2]
[395305758,1764604231792,-250.0,0.00013647,2]
[395305760,1764604231803,-300.0,0.00013893,2]
[395305762,1764604231813,-300.0,0.00013893,2]
[395305764,1764604231823,-300.0,0.00013893,2]
[395305766,1764604231834,-300.0,0.00013893,2]
[395305768,1764604231843,-300.0,0.00013893,2]
[395305769,1764604231853,-195.0,0.00013893,2]
[395305771,1764604231863,-300.0,0.00013945,2]
[395305773,1764604231873,-300.0,0.00013945,2]
[395305775,1764604231883,-300.0,0.00013945,2]
[395305777,1764604231893,-300.0,0.00013945,2]
[395305779,1764604231904,-364.34410567,0.00013945,2]
[395305781,1764604231915,-4018.96597579,0.00014319,2]
[395305786,1764604231968,-1795.30402421,0.00014319,2]
[395305788,1764604231978,-300.0,0.0001437,2]
[395305790,1764604231989,-1200.0,0.0001437,2]
[395305792,1764604232001,-300.0,0.0001437,2]
[395305794,1764604232011,-500.0,0.00014371,2]
[395305796,1764604232022,-500.0,0.00014371,2]
[395305798,1764604232032,-243.0,0.00014371,2]
[395305800,1764604232042,-500.0,0.00014371,2]
[395305801,1764604232053,-500.0,0.00014371,2]
[395305803,1764604232063,-500.0,0.00014371,2]
[395305804,1764604232073,-500.0,0.00014371,2]
[395305805,1764604232084,-500.0,0.00014371,2]
[395305806,1764604232094,-500.0,0.00014371,2]
[395305807,1764604232105,-500.0,0.00014371,2]
[395305808,1764604232115,-500.0,0.00014371,2]
[395305809,1764604232126,-633.16352952,0.00014371,2]
[395305810,1764604232136,-500.0,0.00014371,2]
[395305811,1764604232145,-500.0,0.00014371,2]
[395305812,1764604232156,-500.0,0.00014371,2]
[395305814,1764604232165,-14318.53244627,0.00014372,2]
[395305817,1764604232179,-590.81344249,0.00014372,2]
[395305819,1764604232191,-1266.265,0.00014372,2]
[395305821,1764604232246,-964.32492104,0.00014372,2]
[395305822,1764604232258,-8530.1153258,0.00014372,2]
[395305823,1764604232270,-1460.45530618,0.00014372,2]
[395305824,1764604232282,-2298.56355822,0.00014372,2]
[395305825,1764604232292,-641.0,0.00014999,2]
[395305826,1764604232302,-1007.0,0.00015,2]
[395305827,1764604232315,-1203.0,0.00015056,2]
[395305828,1764604232325,-954.0,0.00015171,2]
[395305829,1764604232335,-9148.46739341,0.00015187,2]
[395305830,1764604232345,-1549.36904838,0.00015187,2]
[395305831,1764604232357,-717.99160486,0.00015187,2]
[395305835,1764604237854,-4204.2,0.00015187,2]
[395305836,1764604237952,-427.01164249,0.00015187,2]
[395305837,1764604237965,-2205.71333948,0.00015187,2]
[395305838,1764604237977,-137.50299361,0.00015187,2]
[395305839,1764604237987,-771.55918037,0.00015187,2]
[395305840,1764604237997,-348.82374243,0.00015217,2]
[395305841,1764604238008,-180.05632897,0.00015218,2]
[395305842,1764604238018,-1200.64801591,0.00015218,2]
[395305843,1764604238031,-436.15111471,0.00015218,2]
[395305844,1764604238054,-434.108675,0.00015218,2]
[395305845,1764604238067,-84499.99999998,0.00015218,2]
[395306013,1764604239796,-673429.0921944,0.00015218,2]
[395306017,1764604239806,-300.0,0.00015287,2]
[395306020,1764604239816,-150.0,0.00015288,2]
[395306022,1764604239826,-150.0,0.00015288,2]
[395306024,1764604239836,-150.00000001,0.00015288,2]
[395306026,1764604239846,-150.0,0.00015288,2]
[395306028,1764604239855,-150.0,0.00015288,2]
[395306030,1764604239866,-150.0,0.00015288,2]
[395306034,1764604239878,-150.0,0.00015288,2]
[395306036,1764604239888,-150.0,0.00015288,2]
[395306038,1764604239898,-150.0,0.00015288,2]
[395306040,1764604239907,-150.0,0.00015288,2]
[395306042,1764604239918,-150.0,0.00015288,2]
[395306044,1764604239928,-150.0,0.00015288,2]
[395306046,1764604239942,-150.0,0.00015288,2]
[395306048,1764604239952,-150.0,0.00015288,2]
[395306050,1764604239962,-150.0,0.00015288,2]
[395306052,1764604239972,-190.82998658,0.00015288,2]
[395306054,1764604239983,-150.0,0.00015288,2]
[395306056,1764604239993,-500.0,0.00015309,2]
[395306058,1764604240003,-500.0,0.00015309,2]
[395306060,1764604240013,-500.0,0.00015309,2]
[395306062,1764604240024,-500.0,0.00015309,2]
[395306064,1764604240035,-500.0,0.00015309,2]
[395306066,1764604240045,-200.0,0.00015309,2]
[395306068,1764604240055,-500.0,0.00015309,2]
[395306070,1764604240065,-500.0,0.00015309,2]
[395306072,1764604240074,-500.0,0.00015309,2]
[395306074,1764604240085,-500.0,0.00015309,2]
[395306076,1764604240095,-151.0,0.00015309,2]
[395306078,1764604240105,-500.0,0.00015309,2]
[395306080,1764604240115,-500.0,0.00015309,2]
[395306082,1764604240125,-500.0,0.00015309,2]
[395306084,1764604240135,-500.0,0.00015309,2]
[395306086,1764604240144,-500.0,0.00015309,2]
[395306088,1764604240153,-500.0,0.00015309,2]
[395306090,1764604240163,-205.57943248,0.00015309,2]
[395306093,1764604240173,-151.0,0.00015309,2]
[395306095,1764604240186,-151.0,0.00015309,2]
[395306097,1764604240203,-151.0,0.00015309,2]
[395306099,1764604240213,-151.0,0.00015309,2]
[395306101,1764604240222,-151.0,0.00015309,2]
[395306103,1764604240232,-151.0,0.00015309,2]
[395306106,1764604240242,-151.0,0.00015309,2]
[395306108,1764604240251,-151.0,0.00015309,2]
[395306110,1764604240261,-151.0,0.00015309,2]
[395306112,1764604240272,-151.0,0.00015309,2]
[395306114,1764604240282,-151.0,0.00015309,2]
[395306116,1764604240292,-151.0,0.00015309,2]
[395306118,1764604240302,-151.0,0.00015309,2]
[395306120,1764604240312,-200.0,0.00015309,2]
[395306122,1764604240322,-151.0,0.00015309,2]
[395306124,1764604240332,-1147.19,0.00015309,2]
[395306126,1764604240342,-470.2016418,0.0001531,2]
[395306128,1764604240351,-2459.293,0.00015317,2]
[395306130,1764604240362,-174.281,0.00015317,2]
[395306133,1764604240373,-150.99,0.00015317,2]
[395306135,1764604240382,-1000.0,0.00015318,2]
[395306137,1764604240392,-600.0,0.00015318,2]
[395306182,1764604240896,-150.0,0.00015341,2]
[395306183,1764604240940,-150.0,0.00015358,2]
[395306184,1764604240955,-9148.46739338,0.00015377,2]
[395306185,1764604240966,-9241.78862873,0.00015377,2]
[395306186,1764604240976,-150.0,0.00015382,2]
[395306187,1764604240987,-150.0,0.00015394,2]
[395306188,1764604240997,-6315.37,0.00015398,2]
[395306189,1764604241008,-227.28,0.00015398,2]
[395306190,1764604241017,-150.0,0.00015401,2]
[395306191,1764604241027,-500.0,0.00015417,2]
[395306192,1764604241036,-544.34192817,0.00015417,2]
[395306193,1764604241046,-522.47521665,0.00015417,2]
[395306195,1764604241057,-500.0,0.00015417,2]
[395306197,1764604241067,-500.0,0.00015417,2]
[395306199,1764604241077,-291.28618921,0.00015417,2]
[395306201,1764604241087,-500.0,0.00015417,2]
[395306204,1764604241097,-500.0,0.00015417,2]
[395306206,1764604241108,-216.0958378,0.00015417,2]
[395306208,1764604241118,-500.0,0.00015417,2]
[395306210,1764604241131,-500.0,0.00015417,2]
[395306212,1764604241141,-500.0,0.00015417,2]
[395306214,1764604241154,-500.0,0.00015417,2]
[395306216,1764604241164,-500.0,0.00015417,2]
[395306218,1764604241175,-500.0,0.00015417,2]
[395306220,1764604241186,-500.0,0.00015417,2]
[395306222,1764604241195,-500.0,0.00015417,2]
[395306224,1764604241205,-500.0,0.00015417,2]
[395306226,1764604241215,-413.92477484,0.00015417,2]
[395306228,1764604241225,-150.0,0.00015418,2]
[395306230,1764604241235,-150.0,0.00015418,2]
[395306232,1764604241245,-1013.66195194,0.00015419,2]
[395306234,1764604241255,-150.0,0.00015429,2]
[395306237,1764604241265,-771.55918036,0.00015432,2]
[395306239,1764604241275,-150.0,0.00015447,2]
[395306241,1764604241286,-150.0,0.00015476,2]
[395306243,1764604241295,-498.0,0.00015494,2]
[395306245,1764604241305,-200.0,0.00015494,2]
[395306247,1764604241315,-150.0,0.000155,2]
[395306249,1764604241325,-150.0,0.000155,2]
[395306251,1764604241334,-150.0,0.000155,2]
[395306253,1764604241347,-150.0,0.00015514,2]
[395306255,1764604241357,-150.0,0.0001553,2]
[395306257,1764604241367,-150.0,0.00015549,2]
[395306259,1764604241377,-150.0,0.00015549,2]
[395306261,1764604241388,-150.0,0.00015553,2]
[395306263,1764604241398,-9148.46739338,0.00015568,2]
[395306266,1764604241409,-9241.78862873,0.00015568,2]
[395306268,1764604241419,-150.0,0.00015571,2]
[395306270,1764604241428,-150.0,0.00015571,2]
[395306271,1764604241441,-530.55981646,0.00015573,2]
[395306274,1764604241454,-617.86212032,0.00015573,2]
[395306276,1764604241465,-500.0,0.00015573,2]
[395306278,1764604241474,-195.49212577,0.00015573,2]
[395306280,1764604241484,-1147.19,0.00015583,2]
[395306282,1764604241494,-150.0,0.00015606,2]
[395306284,1764604241504,-150.0,0.00015627,2]
[395306286,1764604241513,-150.0,0.00015627,2]
[395306288,1764604241524,-150.0,0.00015642,2]
[395306290,1764604241534,-150.0,0.00015659,2]
[395306292,1764604241548,-150.0,0.00015665,2]
[395306294,1764604241559,-500.0,0.00015673,2]
[395306296,1764604241569,-555.00053518,0.00015673,2]
[395306298,1764604241579,-500.0,0.00015673,2]
[395306301,1764604241590,-500.0,0.00015673,2]
[395306303,1764604241600,-500.0,0.00015673,2]
[395306305,1764604241609,-500.0,0.00015673,2]
[395306307,1764604241620,-339.96710079,0.00015673,2]
[395306309,1764604241630,-500.0,0.00015673,2]
[395306311,1764604241640,-500.0,0.00015673,2]
[395306313,1764604241650,-500.0,0.00015673,2]
[395306315,1764604241660,-500.0,0.00015673,2]
[395306317,1764604241670,-500.0,0.00015673,2]
[395306319,1764604241680,-160.17885855,0.00015673,2]
[395306321,1764604241693,-154.41744648,0.00015673,2]
[395306323,1764604241704,-500.0,0.00015673,2]
[395306325,1764604241714,-500.0,0.00015673,2]
[395306327,1764604241725,-500.0,0.00015673,2]
[395306329,1764604241735,-500.0,0.00015673,2]
[395306333,1764604241760,-500.0,0.00015673,2]
[395306335,1764604241772,-500.0,0.00015673,2]
[395306337,1764604241783,-150.0,0.0001568,2]
[395306339,1764604241794,-150.0,0.0001568,2]
[395306341,1764604241805,-150.0,0.00015712,2]
[395306344,1764604241815,-150.0,0.00015712,2]
[395306346,1764604241825,-150.0,0.00015712,2]
[395306348,1764604241836,-327.24,0.00015727,2]
[395306350,1764604241846,-420.0,0.00015737,2]
[395306352,1764604241857,-420.0,0.00015737,2]
[395306354,1764604241867,-150.0,0.00015741,2]
[395306356,1764604241878,-9148.46739338,0.00015758,2]
[395306358,1764604241888,-9241.78862873,0.00015758,2]
[395306360,1764604241899,-150.0,0.0001576,2]
[395306362,1764604241909,-150.0,0.00015765,2]
[395306364,1764604241919,-150.0,0.00015773,2]
[395306367,1764604241930,-150.0,0.00015783,2]
[395306369,1764604241942,-1680.0,0.00015807,2]
[395306371,1764604241952,-150.0,0.0001581,2]
[395306373,1764604241962,-150.0,0.0001581,2]
[395306375,1764604241973,-150.0,0.00015818,2]
[395306377,1764604241983,-150.0,0.00015854,2]
[395306379,1764604241993,-150.0,0.00015854,2]
[395306381,1764604242003,-150.0,0.00015854,2]
[395306383,1764604242013,-150.0,0.00015854,2]
[395306385,1764604242024,-500.0,0.00015857,2]
[395306388,1764604242034,-151.0,0.00015857,2]
[395306390,1764604242044,-200.0,0.00015857,2]
[395306392,1764604242054,-1147.19,0.00015857,2]
[395306394,1764604242064,-600.0,0.00015866,2]
[395306396,1764604242074,-150.0,0.00015872,2]
[395306398,1764604242085,-1000.0,0.00015881,2]
[395306401,1764604242101,-150.0,0.00015925,2]
[395306403,1764604242111,-150.0,0.00015925,2]
[395306405,1764604242122,-150.0,0.00015925,2]
[395306407,1764604242132,-150.0,0.00015941,2]
[395306409,1764604242142,-150.0,0.00015941,2]
[395306411,1764604242153,-150.0,0.00015948,2]
[395306414,1764604242164,-9148.46739338,0.00015948,2]
[395306416,1764604242175,-9241.78862873,0.00015948,2]
[395306418,1764604242187,-150.0,0.00015967,2]
[395306420,1764604242198,-150.0,0.00015967,2]
[395306422,1764604242209,-150.0,0.00015978,2]
[395306424,1764604242219,-150.0,0.00015995,2]
[395306426,1764604242230,-150.0,0.00016016,2]
[395306428,1764604242241,-150.0,0.00016031,2]
[395306429,1764604242251,-150.0,0.00016043,2]
[395306430,1764604242262,-150.0,0.00016066,2]
[395306432,1764604242272,-150.0,0.00016072,2]
[395306434,1764604242283,-150.0,0.00016072,2]
[395306436,1764604242294,-150.0,0.0001608,2]
[395306438,1764604242305,-150.0,0.00016084,2]
[395306440,1764604242315,-9999.99,0.00016116,2]
[395306442,1764604242326,-1000.0,0.00016121,2]
[395306444,1764604242337,-295.79603794,0.00016121,2]
[395306447,1764604242347,-1147.19,0.00016131,2]
[395306449,1764604242358,-150.0,0.00016137,2]
[395306451,1764604242368,-150.0,0.00016137,2]
[395306453,1764604242379,-150.0,0.00016137,2]
[395306455,1764604242389,-150.0,0.00016137,2]
[395306457,1764604242399,-150.0,0.00016137,2]
[395306459,1764604242410,-150.0,0.00016137,2]
[395306461,1764604242421,-9148.46739338,0.00016139,2]
[395306464,1764604242432,-150.0,0.0001619,2]
[395306466,1764604242445,-150.0,0.00016194,2]
[395306468,1764604242455,-150.0,0.00016202,2]
[395306471,1764604242471,-150.0,0.00016202,2]
[395306473,1764604242482,-150.0,0.00016208,2]
[395306475,1764604242493,-1000.0,0.00016221,2]
[395306477,1764604242504,-500.0,0.00016221,2]
[395306479,1764604242515,-1000.0,0.00016221,2]
[395306482,1764604242526,-500.95083099,0.00016221,2]
[395306484,1764604242536,-487.452036,0.00016221,2]
[395306486,1764604242548,-884.9832306,0.00016221,2]
[395306488,1764604242561,-503.6615541,0.00016221,2]
[395306490,1764604242572,-500.0,0.00016221,2]
[395306493,1764604242583,-501.24854415,0.00016221,2]
[395306495,1764604242595,-1000.0,0.00016221,2]
[395306497,1764604242606,-1000.0,0.00016221,2]
[395306499,1764604242616,-1000.0,0.00016221,2]
[395306502,1764604242627,-1000.0,0.00016221,2]
[395306504,1764604242639,-530.66702702,0.00016221,2]
[395306507,1764604242650,-1000.0,0.00016221,2]
[395306510,1764604242660,-500.0,0.00016221,2]
[395306513,1764604242671,-150.0,0.00016231,2]
[395306516,1764604242681,-150.0,0.00016243,2]